Body Name,Body,Service Division,Expense Type,Date Paid,Transaction Ref,Invoice Amount,Supplier Name,,
East Lindsey District Council,http://statistics.data.gov.uk/id/local-authority/32UC,Corporate,Payroll - Attachment Of Earnings,01/03/2022,30008618,383.60 ,Child Maintenance Services,,
East Lindsey District Council,http://statistics.data.gov.uk/id/local-authority/32UC,Corporate,Payroll - Lincolnshire Credit Union,01/03/2022,30008613,360.00 ,Notts and Lincs Credit Union Ltd,,
East Lindsey District Council,http://statistics.data.gov.uk/id/local-authority/32UC,Corporate,Payroll - Superannuation AVC,01/03/2022,30008757,810.00 ,ELDC Conservative Group,,
East Lindsey District Council,http://statistics.data.gov.uk/id/local-authority/32UC,Corporate,Payroll - Unison,01/03/2022,30008614,719.65 ,Unison,,
East Lindsey District Council,http://statistics.data.gov.uk/id/local-authority/32UC,AD Support Services & Partnerships,Other Income,01/03/2022,30008614,-21.59 ,Unison,,
East Lindsey District Council,http://statistics.data.gov.uk/id/local-authority/32UC,Audit,Computer Software Licence Costs,17/02/2022,30008168,304.34 ,Phoenix Software Ltd,,
East Lindsey District Council,http://statistics.data.gov.uk/id/local-authority/32UC,Audit,Computer Software Licence Costs,24/02/2022,30008170,304.34 ,Phoenix Software Ltd,,
East Lindsey District Council,http://statistics.data.gov.uk/id/local-authority/32UC,Audit,Other local authorities,22/02/2022,30007792,"16,520.00 ",Lincolnshire County Council,,
East Lindsey District Council,http://statistics.data.gov.uk/id/local-authority/32UC,Capital,Professional Fees,17/02/2022,30008184,"41,000.00 ",Alliance Leisure Services Limited,,
East Lindsey District Council,http://statistics.data.gov.uk/id/local-authority/32UC,Capital,Professional Fees,24/02/2022,30008206,259.95 ,Emprocom Ltd,,
East Lindsey District Council,http://statistics.data.gov.uk/id/local-authority/32UC,Capital,Professional Fees,15/02/2022,30008264,"2,824.25 ",John Peberdy Partnership,,
East Lindsey District Council,http://statistics.data.gov.uk/id/local-authority/32UC,Capital,Professional Fees,01/03/2022,30008647,"1,355.00 ",Heritage Trust of Lincolnshire Ltd,,
East Lindsey District Council,http://statistics.data.gov.uk/id/local-authority/32UC,Capital,Purchase of Software,15/02/2022,30007598,"52,742.40 ",Banner Group Ltd Ta Spectrum,,
East Lindsey District Council,http://statistics.data.gov.uk/id/local-authority/32UC,Capital,Works to Buildings (Main Contractor),22/02/2022,30008169,"104,458.21 ",Partic Motor Spares Ltd,,
East Lindsey District Council,http://statistics.data.gov.uk/id/local-authority/32UC,Capital,Works to Buildings (Main Contractor),17/02/2022,30008478,"471,434.10 ",Willmott Dixon Construction Ltd,,
East Lindsey District Council,http://statistics.data.gov.uk/id/local-authority/32UC,Climate Change and Environment,Materials and Consumables,10/02/2022,30008207,"1,281.00 ",Moncaster Wire Products Ltd,,
East Lindsey District Council,http://statistics.data.gov.uk/id/local-authority/32UC,Climate Change and Environment,Professional Fees,03/02/2022,30008189,"5,447.92 ",Everwarm Ltd,,
East Lindsey District Council,http://statistics.data.gov.uk/id/local-authority/32UC,Climate Change and Environment,Professional Fees,03/02/2022,30008191,"6,373.92 ",Everwarm Ltd,,
East Lindsey District Council,http://statistics.data.gov.uk/id/local-authority/32UC,Climate Change and Environment,Professional Fees,17/02/2022,30008192,"7,032.92 ",Everwarm Ltd,,
East Lindsey District Council,http://statistics.data.gov.uk/id/local-authority/32UC,Corporate Accounting,External Audit Fees,24/02/2022,30008205,"9,017.00 ",Mazars,,
East Lindsey District Council,http://statistics.data.gov.uk/id/local-authority/32UC,Corporate Accounting,Maintenance,15/02/2022,30008455,"1,395.77 ",Premier Paintworx Ltd,,
East Lindsey District Council,http://statistics.data.gov.uk/id/local-authority/32UC,Corporate Accounting,Other Income,24/02/2022,30008615,"204,334.00 ",Cushman & Wakefield,,
East Lindsey District Council,http://statistics.data.gov.uk/id/local-authority/32UC,Corporate Accounting,Other Miscellaneous Expenses,10/02/2022,30008162,"1,800.00 ",Proactis,,
East Lindsey District Council,http://statistics.data.gov.uk/id/local-authority/32UC,Corporate Accounting,Public Sector Partnership Services,03/02/2022,30006524,"437,944.75 ",Public Sector Partnership Services Ltd,,
East Lindsey District Council,http://statistics.data.gov.uk/id/local-authority/32UC,Corporate Accounting,Public Sector Partnership Services,22/02/2022,30008249,"437,944.75 ",Public Sector Partnership Services Ltd,,
East Lindsey District Council,http://statistics.data.gov.uk/id/local-authority/32UC,Corporate Management,Agency Staff,22/02/2022,30008547,579.75 ,Red Rock Partnership Ltd,,
East Lindsey District Council,http://statistics.data.gov.uk/id/local-authority/32UC,Corporate Management,Agency Staff,24/02/2022,30008568,417.42 ,Red Rock Partnership Ltd,,
East Lindsey District Council,http://statistics.data.gov.uk/id/local-authority/32UC,Corporate Management,Computer Software Licence Costs,17/02/2022,30008168,152.17 ,Phoenix Software Ltd,,
East Lindsey District Council,http://statistics.data.gov.uk/id/local-authority/32UC,Corporate Management,Computer Software Licence Costs,24/02/2022,30008170,152.17 ,Phoenix Software Ltd,,
East Lindsey District Council,http://statistics.data.gov.uk/id/local-authority/32UC,Corporate Management,Furniture and Equipment,01/03/2022,30008504,"1,174.00 ",Eastern Shires Purchasing Organisation,,
East Lindsey District Council,http://statistics.data.gov.uk/id/local-authority/32UC,Corporate Management,Grants and Contributions - Where a Service is Received,08/02/2022,30008218,"50,000.00 ",Charis Grants Ltd,,
East Lindsey District Council,http://statistics.data.gov.uk/id/local-authority/32UC,Corporate Management,Grants and Contributions - Where a Service is Received,10/02/2022,30008376,"2,000.00 ",PERSONAL INFORMATION REDACTED,,
East Lindsey District Council,http://statistics.data.gov.uk/id/local-authority/32UC,Corporate Management,Grants and Contributions - Where a Service is Received,15/02/2022,30008451,"50,000.00 ",Charis Grants Ltd,,
East Lindsey District Council,http://statistics.data.gov.uk/id/local-authority/32UC,Corporate Management,Grants and Contributions to Outside Bodies - No Service Received,02/03/2022,30008096,"573,346.00 ",East Midlands Business Limited,,
East Lindsey District Council,http://statistics.data.gov.uk/id/local-authority/32UC,Corporate Management,Grants and Contributions to Outside Bodies - No Service Received,08/02/2022,30008190,"100,000.00 ",Visit Lincoln Community Interest Company,,
East Lindsey District Council,http://statistics.data.gov.uk/id/local-authority/32UC,Corporate Management,Grants and Contributions to Outside Bodies - No Service Received,22/02/2022,30008426,"4,634.51 ",Ingoldmells Parish Council,,
East Lindsey District Council,http://statistics.data.gov.uk/id/local-authority/32UC,Corporate Management,Grants and Contributions to Outside Bodies - No Service Received,22/02/2022,30008428,"4,425.00 ",Wainfleet All Saints Town Council,,
East Lindsey District Council,http://statistics.data.gov.uk/id/local-authority/32UC,Corporate Management,Grants and Contributions to Outside Bodies - No Service Received,24/02/2022,30008515,"2,450.00 ",Wainfleet All Saints Town Council,,
East Lindsey District Council,http://statistics.data.gov.uk/id/local-authority/32UC,Corporate Management,Lincolnshire Legal Services,10/02/2022,30008236,"7,297.97 ",Lincolnshire County Council,,
East Lindsey District Council,http://statistics.data.gov.uk/id/local-authority/32UC,Corporate Management,Other Miscellaneous Expenses,10/02/2022,30008356,"1,809.80 ",Horncastle Town Council,,
East Lindsey District Council,http://statistics.data.gov.uk/id/local-authority/32UC,Corporate Management,Other Miscellaneous Expenses,10/02/2022,30008359,710.00 ,Horncastle Town Council,,
East Lindsey District Council,http://statistics.data.gov.uk/id/local-authority/32UC,Corporate Management,Other Miscellaneous Expenses,10/02/2022,30008360,"4,485.00 ",Horncastle Town Council,,
East Lindsey District Council,http://statistics.data.gov.uk/id/local-authority/32UC,Corporate Management,Postages,01/03/2022,30008250,300.00 ,Royal Mail Group Ltd,,
East Lindsey District Council,http://statistics.data.gov.uk/id/local-authority/32UC,Corporate Management,Subscriptions to Organisations and Other Bodies,01/03/2022,30008154,750.00 ,Turnstone Coaching Solutions Ltd,,
East Lindsey District Council,http://statistics.data.gov.uk/id/local-authority/32UC,Corporate Management,Vehicle Hire,01/03/2022,30008355,272.18 ,Tjs Self Drive,,
East Lindsey District Council,http://statistics.data.gov.uk/id/local-authority/32UC,DC Revenues & Benefits,Other Income,22/02/2022,30008127,355.12 ,Jacobs,,
East Lindsey District Council,http://statistics.data.gov.uk/id/local-authority/32UC,DC Revenues & Benefits,Other Income,01/03/2022,30008288,675.02 ,Jacobs,,
East Lindsey District Council,http://statistics.data.gov.uk/id/local-authority/32UC,DC Revenues & Benefits,Other Income,01/03/2022,30008593,56.00 ,Bristow and Sutor,,
East Lindsey District Council,http://statistics.data.gov.uk/id/local-authority/32UC,DC Revenues & Benefits,Other Private Contractors,01/03/2022,30008593,302.52 ,Bristow and Sutor,,
East Lindsey District Council,http://statistics.data.gov.uk/id/local-authority/32UC,Development Control,Legal Fees,01/03/2022,30008765,750.00 ,Mark Simmonds Planning Services,,
East Lindsey District Council,http://statistics.data.gov.uk/id/local-authority/32UC,Development Control,Planning Application Fees,22/02/2022,30008512,"4,158.00 ",J & A Young (Leicester) Ltd,,
East Lindsey District Council,http://statistics.data.gov.uk/id/local-authority/32UC,Development Control,Professional and Contractors Fees,10/02/2022,30008303,"14,174.00 ",Boston Borough Council,,
East Lindsey District Council,http://statistics.data.gov.uk/id/local-authority/32UC,East Lindsey Balance Sheet,ST Debtors HB Overpayments Control Account,08/02/2022,30008222,327.37 ,Kaizen Restaurants Ltd,,
East Lindsey District Council,http://statistics.data.gov.uk/id/local-authority/32UC,Enforcement,Professional and Contractors Fees,10/02/2022,30008237,"2,683.75 ",G2 Recruitment Solutions,,
East Lindsey District Council,http://statistics.data.gov.uk/id/local-authority/32UC,Enforcement,Professional and Contractors Fees,10/02/2022,30008238,"1,377.50 ",G2 Recruitment Solutions,,
East Lindsey District Council,http://statistics.data.gov.uk/id/local-authority/32UC,Environmental Health,Computer Software Licence Costs,17/02/2022,30008168,152.17 ,Phoenix Software Ltd,,
East Lindsey District Council,http://statistics.data.gov.uk/id/local-authority/32UC,Environmental Health,Computer Software Licence Costs,24/02/2022,30008170,152.17 ,Phoenix Software Ltd,,
East Lindsey District Council,http://statistics.data.gov.uk/id/local-authority/32UC,Environmental Health,Postages,24/02/2022,30008323,298.15 ,Royal Mail Group Ltd,,
East Lindsey District Council,http://statistics.data.gov.uk/id/local-authority/32UC,Environmental Health,Professional and Contractors Fees,17/02/2022,30008116,956.25 ,G2 Recruitment Solutions,,
East Lindsey District Council,http://statistics.data.gov.uk/id/local-authority/32UC,Environmental Health,Professional and Contractors Fees,08/02/2022,30008138,"1,300.00 ",Arnold Funeral Service,,
East Lindsey District Council,http://statistics.data.gov.uk/id/local-authority/32UC,Environmental Health,Professional and Contractors Fees,08/02/2022,30008172,"1,300.00 ",Arnold Funeral Service,,
East Lindsey District Council,http://statistics.data.gov.uk/id/local-authority/32UC,Environmental Health,Professional and Contractors Fees,24/02/2022,30008198,956.25 ,G2 Recruitment Solutions,,
East Lindsey District Council,http://statistics.data.gov.uk/id/local-authority/32UC,Environmental Health,Professional and Contractors Fees,24/02/2022,30008200,"1,554.00 ",G2 Recruitment Solutions,,
East Lindsey District Council,http://statistics.data.gov.uk/id/local-authority/32UC,Environmental Health,Professional and Contractors Fees,17/02/2022,30008230,"1,365.00 ",G2 Recruitment Solutions,,
East Lindsey District Council,http://statistics.data.gov.uk/id/local-authority/32UC,Environmental Health,Professional and Contractors Fees,08/02/2022,30008234,956.25 ,G2 Recruitment Solutions,,
East Lindsey District Council,http://statistics.data.gov.uk/id/local-authority/32UC,Environmental Health,Professional and Contractors Fees,10/02/2022,30008386,215.75 ,Terryberry Reward,,
East Lindsey District Council,http://statistics.data.gov.uk/id/local-authority/32UC,Growth Relationships & Growth Promotions,Advertising - Events,10/02/2022,30008290,750.00 ,Root Studio,,
East Lindsey District Council,http://statistics.data.gov.uk/id/local-authority/32UC,Growth Relationships & Growth Promotions,Computer Software Licence Costs,17/02/2022,30008168,152.17 ,Phoenix Software Ltd,,
East Lindsey District Council,http://statistics.data.gov.uk/id/local-authority/32UC,Growth Relationships & Growth Promotions,Computer Software Licence Costs,24/02/2022,30008170,152.17 ,Phoenix Software Ltd,,
East Lindsey District Council,http://statistics.data.gov.uk/id/local-authority/32UC,Growth Relationships & Growth Promotions,Other Communication Costs,15/02/2022,30008214,"1,000.00 ",Distract Ltd,,
East Lindsey District Council,http://statistics.data.gov.uk/id/local-authority/32UC,Growth Relationships & Growth Promotions,Other Miscellaneous Expenses,15/02/2022,30008374,"15,000.00 ",The Sessions House CIC,,
East Lindsey District Council,http://statistics.data.gov.uk/id/local-authority/32UC,Growth Relationships & Growth Promotions,Other Miscellaneous Expenses,10/02/2022,30008375,543.25 ,The Sessions House CIC,,
East Lindsey District Council,http://statistics.data.gov.uk/id/local-authority/32UC,Growth Relationships & Growth Promotions,Other Miscellaneous Expenses,24/02/2022,30008598,"10,000.00 ",The Alford Windmill Trust,,
East Lindsey District Council,http://statistics.data.gov.uk/id/local-authority/32UC,Growth Relationships & Growth Promotions,Professional and Contractors Fees,08/02/2022,30007236,"2,400.00 ",Public Sector Partnership Services Ltd,,
East Lindsey District Council,http://statistics.data.gov.uk/id/local-authority/32UC,Growth Relationships & Growth Promotions,Professional and Contractors Fees,08/02/2022,30008046,459.00 ,Freeths LLP,,
East Lindsey District Council,http://statistics.data.gov.uk/id/local-authority/32UC,Growth Relationships & Growth Promotions,Professional and Contractors Fees,08/02/2022,30008047,"1,446.40 ",Freeths LLP,,
East Lindsey District Council,http://statistics.data.gov.uk/id/local-authority/32UC,Growth Relationships & Growth Promotions,Professional and Contractors Fees,10/02/2022,30008291,325.00 ,Root Studio,,
East Lindsey District Council,http://statistics.data.gov.uk/id/local-authority/32UC,Growth Relationships & Growth Promotions,Professional and Contractors Fees,17/02/2022,30008497,"2,000.00 ",Rose Regeneration Ltd,,
East Lindsey District Council,http://statistics.data.gov.uk/id/local-authority/32UC,Growth Relationships & Growth Promotions,Professional and Contractors Fees,17/02/2022,30008501,"2,425.00 ",Player Roberts Bell Architects Ltd,,
East Lindsey District Council,http://statistics.data.gov.uk/id/local-authority/32UC,Housing Advice & Homelessness,Agency Staff,03/02/2022,30008193,477.55 ,Red Rock Partnership Ltd,,
East Lindsey District Council,http://statistics.data.gov.uk/id/local-authority/32UC,Housing Advice & Homelessness,Agency Staff,10/02/2022,30008314,487.16 ,Red Rock Partnership Ltd,,
East Lindsey District Council,http://statistics.data.gov.uk/id/local-authority/32UC,Housing Advice & Homelessness,Bed and Breakfast Accommodation (Homelessness Service),03/02/2022,30008196,315.00 ,The new England hotel (Boston),,
East Lindsey District Council,http://statistics.data.gov.uk/id/local-authority/32UC,Housing Advice & Homelessness,Bed and Breakfast Accommodation (Homelessness Service),03/02/2022,30008197,315.00 ,The new England hotel (Boston),,
East Lindsey District Council,http://statistics.data.gov.uk/id/local-authority/32UC,Housing Advice & Homelessness,Bed and Breakfast Accommodation (Homelessness Service),01/03/2022,30008760,315.00 ,The new England hotel (Boston),,
East Lindsey District Council,http://statistics.data.gov.uk/id/local-authority/32UC,Housing Advice & Homelessness,Bed and Breakfast Accommodation (Homelessness Service),01/03/2022,30008761,315.00 ,The new England hotel (Boston),,
East Lindsey District Council,http://statistics.data.gov.uk/id/local-authority/32UC,Housing Advice & Homelessness,Computer Hardware Purchase,17/02/2022,30008119,591.45 ,Banner Group Ltd Ta Spectrum,,
East Lindsey District Council,http://statistics.data.gov.uk/id/local-authority/32UC,Housing Advice & Homelessness,Computer Software Licence Costs,24/02/2022,30008268,690.00 ,Symetri Ltd,,
East Lindsey District Council,http://statistics.data.gov.uk/id/local-authority/32UC,Housing Advice & Homelessness,Conference and Seminars,01/03/2022,30006744,"8,146.00 ",Citizens Advice Lindsey,,
East Lindsey District Council,http://statistics.data.gov.uk/id/local-authority/32UC,Housing Advice & Homelessness,Grants and Contributions - Where a Service is Received,03/02/2022,30008140,287.50 ,S.O.S Fuels Heating Oil & Red Diesel,,
East Lindsey District Council,http://statistics.data.gov.uk/id/local-authority/32UC,Housing Advice & Homelessness,Grants and Contributions - Where a Service is Received,17/02/2022,30008194,"3,518.71 ",National offender Management Service,,
East Lindsey District Council,http://statistics.data.gov.uk/id/local-authority/32UC,Housing Advice & Homelessness,Grants and Contributions - Where a Service is Received,17/02/2022,30008338,"2,458.62 ",Yes Energy Solutions,,
East Lindsey District Council,http://statistics.data.gov.uk/id/local-authority/32UC,Housing Advice & Homelessness,Grants and Contributions - Where a Service is Received,15/02/2022,30008453,"25,000.00 ",Charis Grants Ltd,,
East Lindsey District Council,http://statistics.data.gov.uk/id/local-authority/32UC,Housing Advice & Homelessness,Grants and Contributions - Where a Service is Received,24/02/2022,30008463,"105,000.00 ",Platform Housing Limited,,
East Lindsey District Council,http://statistics.data.gov.uk/id/local-authority/32UC,Housing Advice & Homelessness,Grants and Contributions - Where a Service is Received,22/02/2022,30008537,"5,000.00 ",Citizens Advice Lindsey,,
East Lindsey District Council,http://statistics.data.gov.uk/id/local-authority/32UC,Housing Advice & Homelessness,Grants and Contributions to Outside Bodies - No Service Received,03/02/2022,30008112,"20,000.00 ",Kevin Brady Builders,,
East Lindsey District Council,http://statistics.data.gov.uk/id/local-authority/32UC,Housing Advice & Homelessness,Grants and Contributions to Outside Bodies - No Service Received,03/02/2022,30008117,"4,358.00 ",Dolphin Mobility,,
East Lindsey District Council,http://statistics.data.gov.uk/id/local-authority/32UC,Housing Advice & Homelessness,Grants and Contributions to Outside Bodies - No Service Received,03/02/2022,30008120,"4,760.00 ",Obam Stairlifts,,
East Lindsey District Council,http://statistics.data.gov.uk/id/local-authority/32UC,Housing Advice & Homelessness,Grants and Contributions to Outside Bodies - No Service Received,03/02/2022,30008121,"6,817.52 ",Ron Gale and Sons Ltd,,
East Lindsey District Council,http://statistics.data.gov.uk/id/local-authority/32UC,Housing Advice & Homelessness,Grants and Contributions to Outside Bodies - No Service Received,08/02/2022,30008223,"2,171.00 ",Dolphin Mobility,,
East Lindsey District Council,http://statistics.data.gov.uk/id/local-authority/32UC,Housing Advice & Homelessness,Grants and Contributions to Outside Bodies - No Service Received,17/02/2022,30008479,"10,027.51 ",Acis HomePlus Limited,,
East Lindsey District Council,http://statistics.data.gov.uk/id/local-authority/32UC,Housing Advice & Homelessness,Grants and Contributions to Outside Bodies - No Service Received,17/02/2022,30008511,"3,811.00 ",Obam Stairlifts,,
East Lindsey District Council,http://statistics.data.gov.uk/id/local-authority/32UC,Housing Advice & Homelessness,Grants and Contributions to Outside Bodies - No Service Received,17/02/2022,30008521,"6,606.29 ",Unique 10 Ltd,,
East Lindsey District Council,http://statistics.data.gov.uk/id/local-authority/32UC,Housing Advice & Homelessness,Grants and Contributions to Outside Bodies - No Service Received,22/02/2022,30008527,"14,338.00 ",Obam Stairlifts,,
East Lindsey District Council,http://statistics.data.gov.uk/id/local-authority/32UC,Housing Advice & Homelessness,Grants and Contributions to Outside Bodies - No Service Received,22/02/2022,30008530,"6,902.62 ",Princebuild Ltd,,
East Lindsey District Council,http://statistics.data.gov.uk/id/local-authority/32UC,Housing Advice & Homelessness,Grants and Contributions to Outside Bodies - No Service Received,22/02/2022,30008531,"14,447.75 ",Ron Gale and Sons Ltd,,
East Lindsey District Council,http://statistics.data.gov.uk/id/local-authority/32UC,Housing Advice & Homelessness,Grants and Contributions to Outside Bodies - No Service Received,22/02/2022,30008541,885.00 ,Sultan Investments London,,
East Lindsey District Council,http://statistics.data.gov.uk/id/local-authority/32UC,Housing Advice & Homelessness,Grants and Contributions to Outside Bodies - No Service Received,22/02/2022,30008542,"1,016.00 ",PERSONAL INFORMATION REDACTED,,
East Lindsey District Council,http://statistics.data.gov.uk/id/local-authority/32UC,Housing Advice & Homelessness,Grants and Contributions to Outside Bodies - No Service Received,22/02/2022,30008543,"20,070.90 ",Ron Gale and Sons Ltd,,
East Lindsey District Council,http://statistics.data.gov.uk/id/local-authority/32UC,Housing Advice & Homelessness,Other Communication Costs,01/03/2022,30008467,773.77 ,Alertcom Limited,,
East Lindsey District Council,http://statistics.data.gov.uk/id/local-authority/32UC,Housing Advice & Homelessness,Other local authorities,15/02/2022,30008050,"220,066.76 ",North Kesteven District Council,,
East Lindsey District Council,http://statistics.data.gov.uk/id/local-authority/32UC,Housing Advice & Homelessness,Other local authorities,15/02/2022,30008051,"237,646.28 ",North Kesteven District Council,,
East Lindsey District Council,http://statistics.data.gov.uk/id/local-authority/32UC,Housing Advice & Homelessness,Other local authorities,01/03/2022,30008643,"250,222.11 ",North Kesteven District Council,,
East Lindsey District Council,http://statistics.data.gov.uk/id/local-authority/32UC,Housing Advice & Homelessness,Other Miscellaneous Expenses,22/02/2022,30008528,300.00 ,PERSONAL INFORMATION REDACTED,,
East Lindsey District Council,http://statistics.data.gov.uk/id/local-authority/32UC,Housing Advice & Homelessness,Staff Training Expenses (Non-Payroll),10/02/2022,30008287,300.00 ,Housing Reviews Limited,,
East Lindsey District Council,http://statistics.data.gov.uk/id/local-authority/32UC,Housing Advice & Homelessness,Staff Training Expenses (Non-Payroll),01/03/2022,30008766,800.00 ,Dementia Interpreter Limited,,
East Lindsey District Council,http://statistics.data.gov.uk/id/local-authority/32UC,Information Technology,Computer Hardware Maintenance,08/02/2022,30008211,60.84 ,Public Sector Partnership Services Ltd,,
East Lindsey District Council,http://statistics.data.gov.uk/id/local-authority/32UC,Information Technology,Computer Hardware Maintenance,22/02/2022,30008517,462.59 ,Direct Telecommunications Systems,,
East Lindsey District Council,http://statistics.data.gov.uk/id/local-authority/32UC,Information Technology,Computer Hardware Purchase,08/02/2022,30008211,"2,512.11 ",Public Sector Partnership Services Ltd,,
East Lindsey District Council,http://statistics.data.gov.uk/id/local-authority/32UC,Information Technology,Computer Software Licence Costs,17/02/2022,30008098,"1,888.40 ",Phoenix Software Ltd,,
East Lindsey District Council,http://statistics.data.gov.uk/id/local-authority/32UC,Information Technology,Computer Software Licence Costs,08/02/2022,30008211,524.21 ,Public Sector Partnership Services Ltd,,
East Lindsey District Council,http://statistics.data.gov.uk/id/local-authority/32UC,Information Technology,External Printing and Design Costs,22/02/2022,30008540,"5,907.88 ",Public Sector Partnership Services Ltd,,
East Lindsey District Council,http://statistics.data.gov.uk/id/local-authority/32UC,Information Technology,Materials and Consumables,08/02/2022,30008211,144.21 ,Public Sector Partnership Services Ltd,,
East Lindsey District Council,http://statistics.data.gov.uk/id/local-authority/32UC,Information Technology,Other Communication Costs,08/02/2022,30008211,125.91 ,Public Sector Partnership Services Ltd,,
East Lindsey District Council,http://statistics.data.gov.uk/id/local-authority/32UC,Information Technology,Other Miscellaneous Expenses,08/02/2022,30008211,463.25 ,Public Sector Partnership Services Ltd,,
East Lindsey District Council,http://statistics.data.gov.uk/id/local-authority/32UC,Information Technology,Telephones,24/02/2022,30008025,"2,908.53 ",Vodafone Ltd Corporate,,
East Lindsey District Council,http://statistics.data.gov.uk/id/local-authority/32UC,Information Technology,Telephones,01/03/2022,30008468,"2,600.66 ",Daisy Corporate Services Trading Ltd,,
East Lindsey District Council,http://statistics.data.gov.uk/id/local-authority/32UC,Leisure Operations,Buildings Maintenance - Programmed,03/02/2022,30008125,"1,577.00 ",Aegis Technologies,,
East Lindsey District Council,http://statistics.data.gov.uk/id/local-authority/32UC,Leisure Operations,Buildings Maintenance - Programmed,17/02/2022,30008311,500.00 ,Aegis Technologies,,
East Lindsey District Council,http://statistics.data.gov.uk/id/local-authority/32UC,Leisure Operations,Buildings Maintenance - Programmed,15/02/2022,30008396,"1,116.77 ",EJ Parker Technical Services (Louth) Ltd,,
East Lindsey District Council,http://statistics.data.gov.uk/id/local-authority/32UC,Leisure Operations,Buildings Maintenance - Responsive,24/02/2022,30008271,305.00 ,Airco Refrigeration Air Conditioning Ltd,,
East Lindsey District Council,http://statistics.data.gov.uk/id/local-authority/32UC,Leisure Operations,Buildings Maintenance - Responsive,24/02/2022,30008306,305.00 ,Airco Refrigeration Air Conditioning Ltd,,
East Lindsey District Council,http://statistics.data.gov.uk/id/local-authority/32UC,Leisure Operations,Buildings Maintenance - Responsive,10/02/2022,30008309,385.00 ,D and D Engineering Lincs Ltd,,
East Lindsey District Council,http://statistics.data.gov.uk/id/local-authority/32UC,Leisure Operations,Buildings Maintenance - Responsive,24/02/2022,30008390,499.82 ,Dalesauna Ltd,,
East Lindsey District Council,http://statistics.data.gov.uk/id/local-authority/32UC,Leisure Operations,Leisure Management,22/02/2022,30008422,"91,530.00 ",Magna Vitae,,
East Lindsey District Council,http://statistics.data.gov.uk/id/local-authority/32UC,Leisure Operations,Professional and Contractors Fees,17/02/2022,30008516,"1,634.00 ",B J Collins - Protected Species Surveyors Ltd,,
East Lindsey District Council,http://statistics.data.gov.uk/id/local-authority/32UC,Neighbourhoods,Agency Staff,01/02/2022,30008111,"5,255.35 ",The Workshop (Wisbech) Ltd,,
East Lindsey District Council,http://statistics.data.gov.uk/id/local-authority/32UC,Neighbourhoods,Agency Staff,03/02/2022,30008151,"4,195.62 ",The Workshop (Wisbech) Ltd,,
East Lindsey District Council,http://statistics.data.gov.uk/id/local-authority/32UC,Neighbourhoods,Agency Staff,17/02/2022,30008522,"4,553.08 ",The Workshop (Wisbech) Ltd,,
East Lindsey District Council,http://statistics.data.gov.uk/id/local-authority/32UC,Neighbourhoods,Agency Staff,01/03/2022,30008594,"4,192.98 ",The Workshop (Wisbech) Ltd,,
East Lindsey District Council,http://statistics.data.gov.uk/id/local-authority/32UC,Neighbourhoods,Agency Staff,01/03/2022,30008773,"4,895.11 ",The Workshop (Wisbech) Ltd,,
East Lindsey District Council,http://statistics.data.gov.uk/id/local-authority/32UC,Neighbourhoods,Buildings Maintenance - Responsive,01/03/2022,30008603,380.00 ,Ajet Drain Services Ltd,,
East Lindsey District Council,http://statistics.data.gov.uk/id/local-authority/32UC,Neighbourhoods,Clothing Uniforms And Laundry,24/02/2022,30008161,307.20 ,SMI Int Group,,
East Lindsey District Council,http://statistics.data.gov.uk/id/local-authority/32UC,Neighbourhoods,Computer Software Licence Costs,17/02/2022,30008168,152.17 ,Phoenix Software Ltd,,
East Lindsey District Council,http://statistics.data.gov.uk/id/local-authority/32UC,Neighbourhoods,Computer Software Licence Costs,24/02/2022,30008170,152.17 ,Phoenix Software Ltd,,
East Lindsey District Council,http://statistics.data.gov.uk/id/local-authority/32UC,Neighbourhoods,Electricity,01/02/2022,30008010,248.41 ,E.on Next,,
East Lindsey District Council,http://statistics.data.gov.uk/id/local-authority/32UC,Neighbourhoods,Electricity,15/02/2022,30008388,348.68 ,E.on Next,,
East Lindsey District Council,http://statistics.data.gov.uk/id/local-authority/32UC,Neighbourhoods,Grounds Maintenance Contract (External),01/03/2022,30008272,"12,105.09 ",Glendale Grounds Management Limited,,
East Lindsey District Council,http://statistics.data.gov.uk/id/local-authority/32UC,Neighbourhoods,Materials and Consumables,01/03/2022,30006809,"18,159.92 ",Cromwell Polythene Ltd,,
East Lindsey District Council,http://statistics.data.gov.uk/id/local-authority/32UC,Neighbourhoods,Materials and Consumables,01/03/2022,30006810,"5,561.12 ",Cromwell Polythene Ltd,,
East Lindsey District Council,http://statistics.data.gov.uk/id/local-authority/32UC,Neighbourhoods,Materials and Consumables,10/02/2022,30008100,409.60 ,Eastern Shires Purchasing Organisation,,
East Lindsey District Council,http://statistics.data.gov.uk/id/local-authority/32UC,Neighbourhoods,Materials and Consumables,10/02/2022,30008110,"5,561.12 ",Cromwell Polythene Ltd,,
East Lindsey District Council,http://statistics.data.gov.uk/id/local-authority/32UC,Neighbourhoods,Materials and Consumables,24/02/2022,30008318,330.45 ,Eastern Shires Purchasing Organisation,,
East Lindsey District Council,http://statistics.data.gov.uk/id/local-authority/32UC,Neighbourhoods,Professional and Contractors Fees,10/02/2022,30008157,424.00 ,Sid Dennis and Sons Ltd,,
East Lindsey District Council,http://statistics.data.gov.uk/id/local-authority/32UC,Neighbourhoods,Professional and Contractors Fees,08/02/2022,30008255,584.40 ,ELAS Occupational Health Ltd,,
East Lindsey District Council,http://statistics.data.gov.uk/id/local-authority/32UC,Neighbourhoods,Professional and Contractors Fees,08/02/2022,30008257,"1,273.01 ",B and B Tree Specialists,,
East Lindsey District Council,http://statistics.data.gov.uk/id/local-authority/32UC,Neighbourhoods,Professional and Contractors Fees,17/02/2022,30008464,530.00 ,Sid Dennis and Sons Ltd,,
East Lindsey District Council,http://statistics.data.gov.uk/id/local-authority/32UC,Neighbourhoods,Professional and Contractors Fees,15/02/2022,30008470,240.00 ,H Pawson and Son,,
East Lindsey District Council,http://statistics.data.gov.uk/id/local-authority/32UC,Neighbourhoods,Professional and Contractors Fees,24/02/2022,30008586,"2,205.00 ",Coningsby Town Council,,
East Lindsey District Council,http://statistics.data.gov.uk/id/local-authority/32UC,Neighbourhoods,Professional and Contractors Fees,24/02/2022,30008595,"7,859.00 ",Sandilands Services,,
East Lindsey District Council,http://statistics.data.gov.uk/id/local-authority/32UC,Neighbourhoods,Staff Training Expenses (Non-Payroll),17/02/2022,30008091,"1,100.00 ",Forefront Training Ltd,,
East Lindsey District Council,http://statistics.data.gov.uk/id/local-authority/32UC,Neighbourhoods,Stationery,24/02/2022,30008318,3.50 ,Eastern Shires Purchasing Organisation,,
East Lindsey District Council,http://statistics.data.gov.uk/id/local-authority/32UC,Neighbourhoods,Vehicle Hire,10/02/2022,30008158,600.88 ,Witham Third Internal Drainage Board,,
East Lindsey District Council,http://statistics.data.gov.uk/id/local-authority/32UC,Neighbourhoods,Water and Sewerage Charges,01/02/2022,30007937,261.26 ,Wave Anglian Water Business National Ltd,,
East Lindsey District Council,http://statistics.data.gov.uk/id/local-authority/32UC,Neighbourhoods,Water and Sewerage Charges,01/02/2022,30007940,398.65 ,Wave Anglian Water Business National Ltd,,
East Lindsey District Council,http://statistics.data.gov.uk/id/local-authority/32UC,Neighbourhoods,Workshop Parts,08/02/2022,30008226,366.20 ,Russells Tuxford,,
East Lindsey District Council,http://statistics.data.gov.uk/id/local-authority/32UC,Organisational Improvement & Development,Advertising - Legal And Public,01/03/2022,30008286,797.50 ,Reach Plc Publishing Ltd,,
East Lindsey District Council,http://statistics.data.gov.uk/id/local-authority/32UC,"Performance, Governance & Commissioning",Computer Software Licence Costs,17/02/2022,30008168,608.67 ,Phoenix Software Ltd,,
East Lindsey District Council,http://statistics.data.gov.uk/id/local-authority/32UC,"Performance, Governance & Commissioning",Computer Software Licence Costs,24/02/2022,30008170,608.67 ,Phoenix Software Ltd,,
East Lindsey District Council,http://statistics.data.gov.uk/id/local-authority/32UC,"Performance, Governance & Commissioning",External Printing and Design Costs,01/03/2022,30008269,148.13 ,Civica Election Services,,
East Lindsey District Council,http://statistics.data.gov.uk/id/local-authority/32UC,"Performance, Governance & Commissioning",Grants and Contributions to Outside Bodies - No Service Received,01/03/2022,30006744,"13,900.00 ",Citizens Advice Lindsey,,
East Lindsey District Council,http://statistics.data.gov.uk/id/local-authority/32UC,"Performance, Governance & Commissioning",Grants and Contributions to Outside Bodies - No Service Received,03/02/2022,30008075,500.00 ,Community Inclusive Trust,,
East Lindsey District Council,http://statistics.data.gov.uk/id/local-authority/32UC,"Performance, Governance & Commissioning",Grants and Contributions to Outside Bodies - No Service Received,03/02/2022,30008159,"1,000.00 ",Mablethorpe Primary Academy,,
East Lindsey District Council,http://statistics.data.gov.uk/id/local-authority/32UC,"Performance, Governance & Commissioning",Grants and Contributions to Outside Bodies - No Service Received,22/02/2022,30008549,"1,000.00 ",Rotary Club of Skegness,,
East Lindsey District Council,http://statistics.data.gov.uk/id/local-authority/32UC,"Performance, Governance & Commissioning",Postages,01/03/2022,30008269,157.75 ,Civica Election Services,,
East Lindsey District Council,http://statistics.data.gov.uk/id/local-authority/32UC,"Performance, Governance & Commissioning",Professional and Contractors Fees,03/02/2022,30008130,333.04 ,Quadient Finance UK Ltd,,
East Lindsey District Council,http://statistics.data.gov.uk/id/local-authority/32UC,Planning Policy,Professional and Contractors Fees,01/03/2022,30008636,"2,912.74 ",Create Consulting Engineers Ltd,,
East Lindsey District Council,http://statistics.data.gov.uk/id/local-authority/32UC,Planning Policy,Professional and Contractors Fees,01/03/2022,30008637,"6,500.00 ",Create Consulting Engineers Ltd,,
East Lindsey District Council,http://statistics.data.gov.uk/id/local-authority/32UC,Property,Buildings Maintenance - Programmed,03/02/2022,30008126,572.00 ,Aegis Technologies,,
East Lindsey District Council,http://statistics.data.gov.uk/id/local-authority/32UC,Property,Buildings Maintenance - Programmed,03/02/2022,30008129,"1,049.00 ",Aegis Technologies,,
East Lindsey District Council,http://statistics.data.gov.uk/id/local-authority/32UC,Property,Buildings Maintenance - Programmed,22/02/2022,30008550,378.00 ,TVF UK Limited,,
East Lindsey District Council,http://statistics.data.gov.uk/id/local-authority/32UC,Property,Buildings Maintenance - Responsive,08/02/2022,30008082,380.00 ,D and D Engineering Lincs Ltd,,
East Lindsey District Council,http://statistics.data.gov.uk/id/local-authority/32UC,Property,Buildings Maintenance - Responsive,08/02/2022,30008221,284.00 ,TVF UK Limited,,
East Lindsey District Council,http://statistics.data.gov.uk/id/local-authority/32UC,Property,Buildings Maintenance - Responsive,24/02/2022,30008484,404.00 ,Avery Weigh-Tronix,,
East Lindsey District Council,http://statistics.data.gov.uk/id/local-authority/32UC,Property,Buildings Maintenance - Responsive,01/03/2022,30008569,730.05 ,J Mccann and Co Ltd,,
East Lindsey District Council,http://statistics.data.gov.uk/id/local-authority/32UC,Property,Buildings Maintenance - Responsive,01/03/2022,30008570,380.00 ,J Mccann and Co Ltd,,
East Lindsey District Council,http://statistics.data.gov.uk/id/local-authority/32UC,Property,Buildings Maintenance - Responsive,01/03/2022,30008632,"30,674.18 ",Gelder Ltd,,
East Lindsey District Council,http://statistics.data.gov.uk/id/local-authority/32UC,Property,Cleaning Contract,01/02/2022,30008107,895.95 ,Easy Clean Marshchapel Ltd,,
East Lindsey District Council,http://statistics.data.gov.uk/id/local-authority/32UC,Property,Cleaning Contract,01/02/2022,30008108,560.80 ,Easy Clean Marshchapel Ltd,,
East Lindsey District Council,http://statistics.data.gov.uk/id/local-authority/32UC,Property,Cleaning Contract,10/02/2022,30008316,"1,143.00 ",Easy Clean Marshchapel Ltd,,
East Lindsey District Council,http://statistics.data.gov.uk/id/local-authority/32UC,Property,Cleaning Contract,10/02/2022,30008317,520.00 ,Easy Clean Marshchapel Ltd,,
East Lindsey District Council,http://statistics.data.gov.uk/id/local-authority/32UC,Property,Computer Software Licence Costs,17/02/2022,30008168,608.67 ,Phoenix Software Ltd,,
East Lindsey District Council,http://statistics.data.gov.uk/id/local-authority/32UC,Property,Computer Software Licence Costs,24/02/2022,30008170,608.67 ,Phoenix Software Ltd,,
East Lindsey District Council,http://statistics.data.gov.uk/id/local-authority/32UC,Property,Electricity,24/02/2022,30008576,439.27 ,British Gas,,
East Lindsey District Council,http://statistics.data.gov.uk/id/local-authority/32UC,Property,Fixtures And Fittings,15/02/2022,30008315,300.00 ,Digicube Ltd,,
East Lindsey District Council,http://statistics.data.gov.uk/id/local-authority/32UC,Property,Furniture and Equipment,15/02/2022,30008456,"1,000.00 ",Francotyp Postalia Ltd (teleset),,
East Lindsey District Council,http://statistics.data.gov.uk/id/local-authority/32UC,Property,Grounds Maintenance Contract (External),22/02/2022,30008365,787.00 ,Royal Mail Group Ltd,,
East Lindsey District Council,http://statistics.data.gov.uk/id/local-authority/32UC,Property,Insurance,15/02/2022,30008261,"2,138.00 ",Protector Insurance,,
East Lindsey District Council,http://statistics.data.gov.uk/id/local-authority/32UC,Property,Maintenance,08/02/2022,30008254,793.45 ,The Tractor Shop,,
East Lindsey District Council,http://statistics.data.gov.uk/id/local-authority/32UC,Property,Professional and Contractors Fees,08/02/2022,30008201,281.92 ,Kings Armoured Security Services Ltd,,
East Lindsey District Council,http://statistics.data.gov.uk/id/local-authority/32UC,Property,Professional and Contractors Fees,03/02/2022,30008203,"1,929.62 ",Kings Armoured Security Services Ltd,,
East Lindsey District Council,http://statistics.data.gov.uk/id/local-authority/32UC,Property,Professional and Contractors Fees,03/02/2022,30008204,"2,009.00 ",Michael Page Int Recruitment Ltd,,
East Lindsey District Council,http://statistics.data.gov.uk/id/local-authority/32UC,Property,Professional and Contractors Fees,01/03/2022,30008242,445.28 ,Chipside Ltd,,
East Lindsey District Council,http://statistics.data.gov.uk/id/local-authority/32UC,Property,Professional and Contractors Fees,08/02/2022,30008253,"1,085.00 ",M.A.P Security Solutions Ltd,,
East Lindsey District Council,http://statistics.data.gov.uk/id/local-authority/32UC,Property,Professional and Contractors Fees,01/03/2022,30008289,"1,875.54 ",Kings Armoured Security Services Ltd,,
East Lindsey District Council,http://statistics.data.gov.uk/id/local-authority/32UC,Public Protection,Grants and Contributions - Where a Service is Received,01/03/2022,30008719,"25,000.00 ",Boston Borough Council,,
East Lindsey District Council,http://statistics.data.gov.uk/id/local-authority/32UC,Public Protection,Professional and Contractors Fees,10/02/2022,30008366,730.00 ,Willbuck Scaffolding Limited,,
East Lindsey District Council,http://statistics.data.gov.uk/id/local-authority/32UC,Public Protection,Professional and Contractors Fees,10/02/2022,30008380,"1,660.10 ",Lincolnshire County Council,,
East Lindsey District Council,http://statistics.data.gov.uk/id/local-authority/32UC,Public Protection,Professional and Contractors Fees,01/03/2022,30008741,445.85 ,Hill Phelan Equine Farm Vet Surgeons,,
East Lindsey District Council,http://statistics.data.gov.uk/id/local-authority/32UC,Public Protection,Staff Training Expenses (Non-Payroll),01/03/2022,30005963,255.00 ,Land Data,,
East Lindsey District Council,http://statistics.data.gov.uk/id/local-authority/32UC,Public Protection,Subscriptions to Organisations and Other Bodies,03/02/2022,30008155,900.00 ,Thomson Reuters,,
East Lindsey District Council,http://statistics.data.gov.uk/id/local-authority/32UC,Public Protection,Subscriptions to Organisations and Other Bodies,01/03/2022,30008642,"24,585.22 ",Lincolnshire County Council,,
East Lindsey District Council,http://statistics.data.gov.uk/id/local-authority/32UC,Theatre,Buildings Maintenance - Programmed,03/02/2022,30008124,938.00 ,Aegis Technologies,,
East Lindsey District Council,http://statistics.data.gov.uk/id/local-authority/32UC,Waste,Agency Staff,01/02/2022,30008106,726.00 ,Reilyn Ltd,,
East Lindsey District Council,http://statistics.data.gov.uk/id/local-authority/32UC,Waste,Agency Staff,08/02/2022,30008171,726.00 ,Reilyn Ltd,,
East Lindsey District Council,http://statistics.data.gov.uk/id/local-authority/32UC,Waste,Agency Staff,15/02/2022,30008278,726.00 ,Reilyn Ltd,,
East Lindsey District Council,http://statistics.data.gov.uk/id/local-authority/32UC,Waste,Agency Staff,10/02/2022,30008294,"7,003.47 ",Red Rock Partnership Ltd,,
East Lindsey District Council,http://statistics.data.gov.uk/id/local-authority/32UC,Waste,Agency Staff,10/02/2022,30008295,"6,918.49 ",Red Rock Partnership Ltd,,
East Lindsey District Council,http://statistics.data.gov.uk/id/local-authority/32UC,Waste,Agency Staff,22/02/2022,30008545,726.00 ,Reilyn Ltd,,
East Lindsey District Council,http://statistics.data.gov.uk/id/local-authority/32UC,Waste,Agency Staff,22/02/2022,30008546,"5,128.18 ",Red Rock Partnership Ltd,,
East Lindsey District Council,http://statistics.data.gov.uk/id/local-authority/32UC,Waste,Agency Staff,22/02/2022,30008548,211.97 ,Red Rock Partnership Ltd,,
East Lindsey District Council,http://statistics.data.gov.uk/id/local-authority/32UC,Waste,Agency Staff,24/02/2022,30008565,"5,299.20 ",Red Rock Partnership Ltd,,
East Lindsey District Council,http://statistics.data.gov.uk/id/local-authority/32UC,Waste,Agency Staff,01/03/2022,30008735,726.00 ,Reilyn Ltd,,
East Lindsey District Council,http://statistics.data.gov.uk/id/local-authority/32UC,Waste,Computer Software Licence Costs,17/02/2022,30008168,152.17 ,Phoenix Software Ltd,,
East Lindsey District Council,http://statistics.data.gov.uk/id/local-authority/32UC,Waste,Computer Software Licence Costs,24/02/2022,30008170,152.17 ,Phoenix Software Ltd,,
East Lindsey District Council,http://statistics.data.gov.uk/id/local-authority/32UC,Waste,External Printing and Design Costs,01/03/2022,30008763,"8,486.63 ",Systematic Print Management Ltd,,
East Lindsey District Council,http://statistics.data.gov.uk/id/local-authority/32UC,Waste,Fuel and Oil,24/02/2022,30008350,"4,491.72 ",Allstar Business Solutions Ltd,,
East Lindsey District Council,http://statistics.data.gov.uk/id/local-authority/32UC,Waste,Fuel and Oil,15/02/2022,30008449,"4,346.87 ",Allstar Business Solutions Ltd,,
East Lindsey District Council,http://statistics.data.gov.uk/id/local-authority/32UC,Waste,Insurance,03/02/2022,30008135,925.00 ,Bibbys Beach Bar,,
East Lindsey District Council,http://statistics.data.gov.uk/id/local-authority/32UC,Waste,Maintenance,10/02/2022,30008143,"3,897.16 ",Partic Motor Spares Ltd,,
East Lindsey District Council,http://statistics.data.gov.uk/id/local-authority/32UC,Waste,Maintenance,22/02/2022,30008144,"3,951.00 ",Partic Motor Spares Ltd,,
East Lindsey District Council,http://statistics.data.gov.uk/id/local-authority/32UC,Waste,Maintenance,10/02/2022,30008150,"3,897.16 ",Partic Motor Spares Ltd,,
East Lindsey District Council,http://statistics.data.gov.uk/id/local-authority/32UC,Waste,Maintenance,15/02/2022,30008382,233.56 ,Truck Links,,
East Lindsey District Council,http://statistics.data.gov.uk/id/local-authority/32UC,Waste,Materials and Consumables,17/02/2022,30008118,"14,853.00 ",ESE Ltd,,
East Lindsey District Council,http://statistics.data.gov.uk/id/local-authority/32UC,Waste,Materials and Consumables,24/02/2022,30008148,"8,394.00 ",ESE Ltd,,
East Lindsey District Council,http://statistics.data.gov.uk/id/local-authority/32UC,Waste,Materials and Consumables,24/02/2022,30008195,"8,115.00 ",ESE Ltd,,
East Lindsey District Council,http://statistics.data.gov.uk/id/local-authority/32UC,Waste,Other Private Contractors,01/03/2022,30008293,"1,274.83 ",Glass Recycling UK Ltd,,
East Lindsey District Council,http://statistics.data.gov.uk/id/local-authority/32UC,Waste,Premises Lease Payments (More than 12 months),08/02/2022,30008048,"15,937.50 ",Lincolnshire County Council,,
East Lindsey District Council,http://statistics.data.gov.uk/id/local-authority/32UC,Waste,Professional and Contractors Fees,01/03/2022,30008275,214.77 ,Restore Datashred,,
East Lindsey District Council,http://statistics.data.gov.uk/id/local-authority/32UC,Waste,Professional and Contractors Fees,10/02/2022,30008349,"1,831.67 ",TIS Training Consultancy,,
East Lindsey District Council,http://statistics.data.gov.uk/id/local-authority/32UC,Waste,Professional and Contractors Fees,22/02/2022,30008525,213.32 ,Lincolnshire County Council,,
East Lindsey District Council,http://statistics.data.gov.uk/id/local-authority/32UC,Waste,Vehicle Recovery,10/02/2022,30008297,400.00 ,Peter & David Cosby,,
East Lindsey District Council,http://statistics.data.gov.uk/id/local-authority/32UC,Waste,Workshop Parts,22/02/2022,30007927,212.50 ,Bucher Municipal,,
East Lindsey District Council,http://statistics.data.gov.uk/id/local-authority/32UC,Waste,Workshop Parts,24/02/2022,30008043,475.33 ,Bucher Municipal,,
East Lindsey District Council,http://statistics.data.gov.uk/id/local-authority/32UC,Waste,Workshop Parts,22/02/2022,30008105,710.10 ,Partic Motor Spares Ltd,,
East Lindsey District Council,http://statistics.data.gov.uk/id/local-authority/32UC,Waste,Workshop Parts,24/02/2022,30008145,214.29 ,Partic Motor Spares Ltd,,
East Lindsey District Council,http://statistics.data.gov.uk/id/local-authority/32UC,Waste,Workshop Parts,22/02/2022,30008146,"1,546.67 ",Partic Motor Spares Ltd,,
East Lindsey District Council,http://statistics.data.gov.uk/id/local-authority/32UC,Waste,Workshop Parts,22/02/2022,30008147,226.77 ,Partic Motor Spares Ltd,,
East Lindsey District Council,http://statistics.data.gov.uk/id/local-authority/32UC,Waste,Workshop Parts,10/02/2022,30008186,469.53 ,Partic Motor Spares Ltd,,
East Lindsey District Council,http://statistics.data.gov.uk/id/local-authority/32UC,Waste,Workshop Parts,10/02/2022,30008216,"9,200.00 ",Vaculug Technologies Ltd,,
East Lindsey District Council,http://statistics.data.gov.uk/id/local-authority/32UC,Waste,Workshop Parts,24/02/2022,30008258,218.32 ,Bryan Coupland Ltd,,
East Lindsey District Council,http://statistics.data.gov.uk/id/local-authority/32UC,Waste,Workshop Parts,10/02/2022,30008300,"1,283.34 ",Partic Motor Spares Ltd,,
East Lindsey District Council,http://statistics.data.gov.uk/id/local-authority/32UC,Waste,Workshop Parts,01/03/2022,30008301,990.88 ,Partic Motor Spares Ltd,,
East Lindsey District Council,http://statistics.data.gov.uk/id/local-authority/32UC,Waste,Workshop Parts,10/02/2022,30008328,262.36 ,N T Shaw of Louth,,
East Lindsey District Council,http://statistics.data.gov.uk/id/local-authority/32UC,Waste,Workshop Parts,10/02/2022,30008333,262.36 ,N T Shaw of Louth,,
East Lindsey District Council,http://statistics.data.gov.uk/id/local-authority/32UC,Waste,Workshop Parts,10/02/2022,30008336,218.77 ,N T Shaw of Louth,,
East Lindsey District Council,http://statistics.data.gov.uk/id/local-authority/32UC,Waste,Workshop Parts,10/02/2022,30008337,218.77 ,N T Shaw of Louth,,
East Lindsey District Council,http://statistics.data.gov.uk/id/local-authority/32UC,Waste,Workshop Parts,10/02/2022,30008339,284.87 ,N T Shaw of Louth,,
East Lindsey District Council,http://statistics.data.gov.uk/id/local-authority/32UC,Waste,Workshop Parts,10/02/2022,30008341,889.10 ,N T Shaw of Louth,,
East Lindsey District Council,http://statistics.data.gov.uk/id/local-authority/32UC,Waste,Workshop Parts,10/02/2022,30008342,266.05 ,N T Shaw of Louth,,
East Lindsey District Council,http://statistics.data.gov.uk/id/local-authority/32UC,Waste,Workshop Parts,10/02/2022,30008343,235.98 ,N T Shaw of Louth,,
East Lindsey District Council,http://statistics.data.gov.uk/id/local-authority/32UC,Waste,Workshop Parts,10/02/2022,30008345,209.82 ,N T Shaw of Louth,,
East Lindsey District Council,http://statistics.data.gov.uk/id/local-authority/32UC,Waste,Workshop Parts,10/02/2022,30008347,"1,306.18 ",N T Shaw of Louth,,
East Lindsey District Council,http://statistics.data.gov.uk/id/local-authority/32UC,Waste,Workshop Parts,15/02/2022,30008351,378.00 ,B A Bush and Son Ltd,,
East Lindsey District Council,http://statistics.data.gov.uk/id/local-authority/32UC,Waste,Workshop Parts,17/02/2022,30008421,265.00 ,Ford and Slater DAF (Lincoln Newark),,
East Lindsey District Council,http://statistics.data.gov.uk/id/local-authority/32UC,Waste,Workshop Parts,01/03/2022,30008551,290.00 ,Mcfarlands of Louth Ltd,,
East Lindsey District Council,http://statistics.data.gov.uk/id/local-authority/32UC,Waste,Workshop Parts,24/02/2022,30008560,504.32 ,Ford and Slater DAF (Lincoln Newark),,
East Lindsey District Council,http://statistics.data.gov.uk/id/local-authority/32UC,Waste,Workshop Parts,24/02/2022,30008579,390.00 ,Partic Motor Spares Ltd,,
